Cogmind - Beta 9.5 @@@ ROGUE MODE // 2020.04.07 @ 15:39:42 Player: Barleymor Result: Destroyed by G-34 Mercenary with Small Laser Performance ------------- Evolutions (1) 500 Regions Visited (2) 400 Robots Destroyed (41) 205 Value Destroyed (923) 923 Prototype IDs (1) 20 Alien Tech Used (0) 0 Bonus (0) 0 TOTAL SCORE: 2048 Bonus ------- None Cogmind --------- Core Integrity 0/400 Matter 263/300 Energy 100/100 System Corruption 1% Temperature Cool (6) Movement Core (250) Ox4 Location -9/Materials Parts ------- > --- POWER (1) -------- (None) > --- PROPULSION (4) --- (None) > --- UTILITY (2) ------ Medium Storage Unit Improved Light Armor Plating > --- WEAPON (2) ------- Heavy Assault Rifle > --- INVENTORY (8) ---- Nuclear Core Large Storage Unit Advanced Signal Interpreter Light Armor Plating Improved Light Armor Plating Improved Light Armor Plating Hacking Suite Peak State ------------ > --- POWER ------------ Nuclear Core > --- PROPULSION ------- Aluminum Leg Aluminum Leg Aluminum Leg Improved Aluminum Leg > --- UTILITY ---------- Large Storage Unit Sensor Array > --- WEAPON ----------- Heavy EM Pulse Gun Improved Medium Laser > --- INVENTORY -------- Nuclear Core Aluminum Leg Medium Storage Unit Advanced Signal Interpreter Improved Light Armor Plating Improved Light Armor Plating Hacking Suite Light Assault Rifle Light Assault Rifle Light Assault Rifle [Rating: 17] Favorites ----------- Power Light Ion Engine Engine Light Ion Engine Power Core Nuclear Core Propulsion Aluminum Leg Treads Light Treads Leg Aluminum Leg Utility Sensor Array Device Sensor Array Storage Large Storage Unit Protection Improved Light Armor Plating Weapon Assault Rifle Energy Gun Heavy EM Pulse Gun Ballistic Gun Assault Rifle Build | -11 -10 -9 ------- Run | Scr Mat Mat Slots Evolved 2 | . . 2 Power . | . . . Propulsion 2 | . . 2 Utility . | . . . Weapon . | . . . Parts Attached 32 | 6 6 20 Power 6 | 1 3 2 Engine 5 | 1 3 1 Core 1 | . . 1 Reactor . | . . . Propulsion 9 | 2 . 7 Treads 2 | . . 2 Leg 7 | 2 . 5 Wheel . | . . . Hover . | . . . Flight . | . . . Utility 6 | 1 2 3 Device 1 | . 1 . Storage 4 | 1 1 2 Processor . | . . . Hackware . | . . . Protection 1 | . . 1 Artifact . | . . . Weapon 11 | 2 1 8 Energy Gun 5 | . . 5 Energy Cannon . | . . . Ballistic Gun 6 | 2 1 3 Ballistic Cannon . | . . . Launcher . | . . . Special Weapon . | . . . Impact Weapon . | . . . Slashing Weapon . | . . . Piercing Weapon . | . . . Special Melee Weapon . | . . . Unidentified Prototypes 1 | . . 1 Parts Lost 17 | . 1 16 Power 2 | . 1 1 Propulsion 7 | . . 7 Utility 1 | . . 1 Weapon 7 | . . 7 Highest Loss Streak 7 | . 1 7 Average Slot Usage (%) 92 | . 91 93 Engine 8 | . 13 6 Core 2 | . . 3 Treads 1 | . . 2 Leg 34 | . 28 37 Device 9 | . 7 10 Storage 12 | . 14 11 Energy Gun 11 | . . 17 Ballistic Gun 11 | . 28 3 Naked Turns . | . . . Heaviest Build 30 | 11 15 30 Greatest Support 43 | 20 20 43 Greatest Overweight (x) 2 | . . 2 Average Overweight (x) . | . . . Largest Inventory Capacity 10 | 6 8 10 Average Capacity 8 | 5 6 9 Most Carried 10 | 4 6 10 Average Carried 6 | 1 4 7 Final Capacity 8 | 6 8 8 Final Carried 7 | 2 6 7 Class Distribution -------------------- 100% | Mutant Dominant Class ---------------- Mutant | -10/Materials Mutant | -9/Materials Resources | -11 -10 -9 ----------- Run | Scr Mat Mat Matter Collected 816 | 290 276 250 Remotely . | . . . Salvage Created 1548 | 76 325 1147 Parts 87 | 1 16 70 Haulers Intercepted . | . . . Recyclers Shooed 2 | . 1 1 Parts Field Recycled . | . . . Retrieved Matter . | . . . Parts Self-Destructed . | . . . Prevented . | . . . Kills | -11 -10 -9 ------- Run | Scr Mat Mat Combat Hostiles Destroyed 32 | . 10 22 Guns 32 | . 10 22 Classes Destroyed 8 | 1 2 5 Worker 1 | . . 1 Recycler 5 | 1 1 3 Operator 1 | . . 1 Watcher 2 | . . 2 Swarmer 14 | . 6 8 Grunt 10 | . 4 6 Brawler 1 | . . 1 Sentry 7 | . . 7 Best Kill Streak 7 | 1 4 7 Combat Bots Only 5 | . 4 5 Max Kills in Single Turn 2 | 1 1 2 Gunslinging . | . . . Exploded . | . . . Melee . | . . . Uniques/NPCs Destroyed . | . . . Combat | -11 -10 -9 -------- Run | Scr Mat Mat Damage Taken 2361 | . 456 1905 Core 473 | . 68 405 Absorbed by Shields . | . . . Core Remaining (%) 86 | 100 72 . Volleys Fired 142 | 5 46 91 Largest 2 | 2 2 2 Hottest 101 | 40 40 101 Shots Fired 258 | 10 92 156 Gun 258 | 10 92 156 Cannon . | . . . Launcher . | . . . Special . | . . . Kinetic 146 | 10 92 44 Thermal 48 | . . 48 Explosive . | . . . Electromagnetic 64 | . . 64 Robot Hit Streak 23 | 3 18 23 Robot Miss Streak 5 | 2 5 3 Penetration Max . | . . . Secondary Targets 4 | . 1 3 Max Gunslinging Chain 1 | . 1 1 Shots Hit Robots 172 | 6 62 104 Core Hits 67 | 2 19 46 Critical Hits . | . . . Critical Kills . | . . . Critical Parts Destroyed . | . . . Melee Attacks . | . . . Impact . | . . . Slashing . | . . . Piercing . | . . . Sneak Attacks . | . . . Combat Hostiles . | . . . Follow-up Attacks . | . . . Damage Inflicted 2250 | 70 747 1433 Guns 2219 | 70 747 1402 Cannons . | . . . Explosions 31 | . . 31 Melee . | . . . Ramming . | . . . Kinetic 1076 | 70 747 259 Thermal 460 | . . 460 Explosive . | . . . Electromagnetic 714 | . . 714 Impact . | . . . Slashing . | . . . Piercing . | . . . Highest Corruption 1 | . . 1 Average Corruption 1 | . . 1 Corruption Purged . | . . . Effects 2 | . . 2 Message Errors 2 | . . 2 Overload Shots . | . . . Overflow Damage . | . . . Projectiles . | . . . Explosions . | . . . Melee . | . . . Knockbacks . | . . . Impact . | . . . Kinetic . | . . . Secondary . | . . . Self-Inflicted Damage . | . . . Shots . | . . . Rammed . | . . . Targets Rammed . | . . . Kicked . | . . . Crushed . | . . . Highest Temperature 342 | 6 5 342 Average Temperature 66 | 6 2 68 Received Heat Transfer 762 | . 174 588 Siege Activations . | . . . Robots Corrupted . | . . . Combat Hostiles . | . . . Parts Fried 2 | . . 2 Impact Corruptions . | . . . Robots Melted . | . . . Combat Hostiles . | . . . Parts Melted 3 | . . 3 Heat Transferred 1049 | . . 1049 Parts Sabotaged . | . . . Parts Stolen . | . . . Parts Stripped . | . . . Power Chain Reactions 1 | . . 1 Missiles Intercepted . | . . . Alert | -11 -10 -9 ------- Run | Scr Mat Mat Peak Influence 357 | 5 160 357 Average Influence 99 | 1 72 119 Maximum Alert Level 1 | . . 1 Low Security (%) 84 | 100 100 75 Level 1 15 | . . 24 Level 2 . | . . . Level 3 . | . . . Level 4 . | . . . Level 5 . | . . . High Security . | . . . Max Security . | . . . Squads Dispatched 2 | . 1 1 Investigation . | . . . Extermination . | . . . Reinforcement 2 | . 1 1 Assault . | . . . Garrison . | . . . Intercept . | . . . Construction Impeded . | . . . Haulers Reinforced . | . . . Stealth | -11 -10 -9 --------- Run | Scr Mat Mat Distress Signals 7 | . 2 5 Communications Jammed . | . . . Distress Signals . | . . . Times Spotted 54 | . 19 35 Peak Tracking Total 6 | . 6 6 Tactical Retreats 5 | . 1 4 Traps | -11 -10 -9 ------- Run | Scr Mat Mat Traps Triggered 1 | . . 1 Indirectly . | . . . Trap Hack Attempts . | . . . Triggered . | . . . Disarmed . | . . . Reprogrammed . | . . . Reused . | . . . Traps Extracted . | . . . Installed . | . . . Triggered . | . . . Machines | -11 -10 -9 ---------- Run | Scr Mat Mat Machines Disabled . | . . . Max in Single Turn . | . . . Machines Sabotaged . | . . . Garrisons Compromised . | . . . Overloaded Fab Kills . | . . . Fab Network Shutdowns . | . . . Hacking | -11 -10 -9 --------- Run | Scr Mat Mat Machines Accessed 4 | . 4 . Terminals 3 | . 3 . Fabricators . | . . . Repair Stations . | . . . Recycling Units 1 | . 1 . Scanalyzers . | . . . Garrison Access . | . . . Total Hacks 6 | . 6 . Successful 4 | . 4 . Failed 2 | . 2 . Catastrophic . | . . . Database Lockouts . | . . . Manual . | . . . Terminals 5 | . 5 . Fabricators . | . . . Repair Stations . | . . . Recycling Units 1 | . 1 . Scanalyzers . | . . . Garrison Access . | . . . Terminal Hacks 3 | . 3 . Alert Level 1 | . 1 . Recall Investigation 1 | . 1 . Zone Layout 1 | . 1 . Fabricator Hacks . | . . . Repair Station Hacks . | . . . Recycling Unit Hacks 1 | . 1 . Report Inventory 1 | . 1 . Scanalyzer . | . . . Garrison Access Hacks . | . . . Unauthorized Hacks . | . . . Terminals . | . . . Fabricators . | . . . Repair Stations . | . . . Recycling Units . | . . . Scanalyzers . | . . . Garrison Access . | . . . Data Cores Recovered 1 | . . 1 Used . | . . . Hacking Detections . | . . . Full Trace Events . | . . . Feedback Events . | . . . Feedback Blocked . | . . . Robot Schematics Acquired . | . . . Robots Built . | . . . Matter . | . . . Time . | . . . Total Robot Build Rating . | . . . Part Schematics Acquired . | . . . Parts Built . | . . . Matter . | . . . Time . | . . . Total Part Build Rating . | . . . Parts Repaired . | . . . Time . | . . . Parts Recycled . | . . . Recycled Matter . | . . . Retrieved Matter . | . . . Retrieved Components . | . . . Parts Scanalyzed . | . . . Part Schematics Acquired . | . . . Parts Damaged . | . . . Bothacking | -11 -10 -9 ------------ Run | Scr Mat Mat Used RIF Installer . | . . . Robots Hacked . | . . . Non-combat . | . . . Combat . | . . . Robot Hacks Applied . | . . . Relay Couplers Released . | . . . Robots Rewired . | . . . Allies Hacked . | . . . Hacks Repelled . | . . . Allies | -11 -10 -9 -------- Run | Scr Mat Mat Total Allies . | . . . Largest Group . | . . . Highest-Rated Group . | . . . Highest-Rated Ally . | . . . Total Orders . | . . . Ally Attacks . | . . . Total Damage . | . . . Kills . | . . . Allies Corrupted . | . . . Allies Melted . | . . . Intel | -11 -10 -9 ------- Run | Scr Mat Mat Robot Analysis Total . | . . . Derelict Logs Recovered . | . . . Drone Launches . | . . . Drone Recoveries . | . . . Exploration | -11 -10 -9 ------------- Run | Scr Mat Mat Turns Passed 2072 | 75 684 1313 Spaces Moved 777 | 46 375 356 Core 11 | 11 . . Treads 37 | . . 37 Legs 729 | 35 375 319 Wheels . | . . . Hover . | . . . Flight . | . . . Fastest Speed 50 | 50 120 120 Average Speed 121 | 103 120 125 Slowest Speed 180 | 120 120 180 Overloaded Moves . | . . . Propulsion Burnouts . | . . . Robots Hopped . | . . . Cave-ins Triggered . | . . . Exploration Rate (%) 29 | 4 46 37 Regions Visited 2 Branch Regions . Pre-discovered Areas . | . . . Known Exits Taken . | . . . Unknown Exits Taken 2 | 1 1 . Scrap Searched . | . . . Spaces Dug . | . . . Terrain Destroyed 2 | . . 2 Melee . | . . . Projectile . | . . . AOE 2 | . . 2 Actions | -11 -10 -9 --------- Run | Scr Mat Mat Total 1655 | 63 518 1074 Wait 664 | . 81 583 Move 775 | 45 374 356 Hop . | . . . Pick Up 31 | 7 7 17 Fast Attach 5 | 1 1 3 Attach 15 | 5 1 9 Detach . | . . . Swap 12 | . 4 8 Drop 11 | . 4 7 Fire 142 | 5 46 91 Melee . | . . . Ram . | . . . Kick . | . . . Crush . | . . . Escape Stasis . | . . . Rewire . | . . . Trap . | . . . Miscellaneous . | . . . Route ------- -11/Scrapyard -10/Materials (discovered 3 exits: [*Mat x2] / [*Min]) -9/Materials (discovered 1 exit: [*Min]) History --------- Turn | Location | Event 2 | -11/Scrapyard | Met Revision 17 11 | -11/Scrapyard | Discovered new exit (range 15) 76 | -11/Scrapyard | Entered Materials 105 | -10/Materials | Discovered new exit (range 6) 153 | -10/Materials | Discovered new exit (range 14) 305 | -10/Materials | Build established: Mutant 631 | -10/Materials | Discovered new exit (range 12) 760 | -10/Materials | Entered another Materials area 760 | -9/Materials | Evolved 2 slots: Propulsion x2 1621 | -9/Materials | Discovered new exit (range 8) 1973 | -9/Materials | Lost 6 parts (3n3w) 2004 | -9/Materials | Core integrity fell below 50% 2053 | -9/Materials | Core integrity fell below 20% 2073 | -9/Materials | Destroyed by G-34 Mercenary with Small Laser Last Messages --------------- 02046_ U-05 Engineer lays Concrete. 02048_ U-05 Engineer builds a Wall. 02048_ U-05 Engineer lays Concrete. 02049_ U-05 Engineer destroyed. 02050_ W-16 Scout sends out distress signal. 02051_ R-06 Scavenger collects Wheel. 02051_ R-06 Scavenger destroyed. 02052_ U-05 Engineer lays Concrete. 02054_ The unstable cave ceiling collapses. 02054_ Lgt. Treads destroyed. 02054_ U-05 Engineer builds a Wall. 02054_ Acquired Hvy. Assault Rifle. 02056_ G-34 Mercenary destroyed. 02059_ U-05 Engineer lays Concrete. 02067_ R-06 Scavenger collects Com. Wheel. 02068_ U-05 Engineer lays Concrete. 02070_ G-34 Mercenary destroyed. 02071_ U-05 Engineer lays Concrete. 02073_ R-06 Scavenger destroyed. 02073_ U-05 Engineer lays Concrete. Map ----- +----------------------------------------------------+ | ##### *%%% #?????????????# #???????? | | #?????????????## ##???????? | | ##### #??????????# ?????????? | | ##+##????# ##### # #??????????# ?????????? | | ????????## ########### +??????????# ?????????? | | ????????# """#???????? #??????????# ?????????? | | ????????# "#???????? #??????????# ?????????? | | ????????# |"#????????? #??????????# ?????????? | | ????????# < ""#?????????? ?????????????????????? | | ????????# !"#?????????? ????????????????????? | | ????????# "#??????????? ????????????????????? | | ????????# """#????????????#???????????????????? | | ????????## ####????????????????????????????????? | | ?????????# #???????????????????????????????????? | | ?????????# #???????????????????????????????????? | | ?????????#% %#???????????????????????????????????? | | ????????## %%##???????????????????#??????????????? | | ######## ######????????????? #??????????????? | | #????????????? #??????????????? | | #???????????? #??????????????? | | #???????????? #??????????????? | | ###! % ## #######????? #?????##???????? | | #####+#### # ####### #### #???????? | | %+ # t !! [[! #???????? | | ##### + [!u [!! t #???????? | | ?????#! ! # =@!= ! T #???????? | | ??????# ! ## =!%![ #???????? | | ??????# ## !%*=!= #???????? | | ??????# %## !%%=% #???????? | | ??????# %## u % [=g #???????? | | ??????# %%+% %%% #???????? | | ??????# !% %### # #######g #???????? | | ??????##########?## #??? ^^ /???????? | | ??????????????????# """ #??? ^ #???????? | | ??????????????????# """ #??? ^^ #???????? | | ??????????????????# """ #???? ""T"" ????????? | | ??????????????????# #???? """"" ????????? | | ?????????????????? +???? ???????????????? | | ?????????????????## ##??? ???????????????? | | ??????????????????? !! #????? ???????????????? | | ???????????????????? ! #?????????????????????? | | ????????????????????########?????????????????????? | | ?????????????????????????????????????????????????? | | ?????????????????????????????????????????????????? | | ?????????????????????????????????????????????????? | | ?????????????????????????????????????????????????? | | ?????????????????????????????????????????????????? | | ?????????????????????????????????????????????????? | | ?????????????????????????????????????????????????? | | ?????????????????????????????????????????????????? | +----------------------------------------------------+ Best States ------------- Heat Dissipation 28 Energy Generation 14 Energy Capacity 250 Matter Stores 300 Matter Capacity 300 Sight Range 16 Robot Scan Range 10 Terrain Scan Density 10 Armor Coverage 150 Evasion (%) 50 Recoil Reduction 2 Item Schematics ----------------- None Robot Schematics ------------------ None Fabricated ------------ Nothing Alien Tech Used ----------------- None Achievements -------------- None Challenges ------------ None Game ------ Seed SignalWeaponScythe Manual? 0 Play Time 00:28:32 Cumulative 17.2 hours Start 2020.04.07 @ 15:13:23 End 2020.04.07 @ 15:39:42 Sessions 1 Manual Loads 0 Difficulty Rogue Special Mode None Game No. 14 Rogue 14 Adventurer 0 Explorer 0 Win Type - Total 0 Types 0/0/0/0/0/0/0 Lore% 5 Gallery% 21 Achievement% 17 Wizard Run 0 Options --------- ASCII 0 Keyboard 0 Movement Numpad Keybinds 0 Fullscreen 1 Font 20/SmallcapsGlow Map View 66x50 Tactical HUD 1 Map Filters NONE Filters NONE Steam 1 RUN: 162fd61c-a0dd-426e-b4b2-ab987058f4e1